Workbook

Sheet Zestawienie Danych
A1: Data | B1: Zmiana | C1: Numer detalu | D1: Zrealizowana ilość [szt.] | E1: Ilość braków [szt.]: | F1: Całkowita ilość | G1: Dzień: | H1: Miesiąc: | I1: Rok: | J1: Miesiąc2
A2: 2017-01-02 | B2: II | C2: 351 | D2: 91 | E2: 1 | F2: =IF(A2="","",D2+E2) -> 92 | G2: =IF(A2="","",TEXT(DAY(A2),"dddd")) -> poniedziałek | H2: =IFERROR(IF(A2="","",TEXT(MONTH(A2)*30,"mmmm")),"") -> styczeń | I2: =IF(A2="","",YEAR(A2)) -> 2017 | J2: =H2 -> styczeń
A3: 2017-01-02 | B3: II | C3: 2030723 | D3: 1000 | E3: 1 | F3: 1001 | G3: =IF(A3="","",TEXT(DAY(A3),"dddd")) -> poniedziałek | H3: =IFERROR(IF(A3="","",TEXT(MONTH(A3)*30,"mmmm")),"") -> styczeń | I3: 2017 | J3: styczeń
A4: 2017-01-02 | B4: II | C4: 780 | D4: 140 | F4: 140 | G4: poniedziałek | H4: styczeń | I4: 2017 | J4: styczeń
A5: 2017-01-02 | B5: II | C5: 356 | D5: 150 | F5: 150 | G5: poniedziałek | H5: styczeń | I5: =IF(A5="","",YEAR(A5)) -> 2017 | J5: styczeń
A6: 2017-01-02 | B6: II | C6: 498 | D6: 1959 | E6: 7 | F6: =IF(A6="","",D6+E6) -> 1966 | G6: poniedziałek | H6: styczeń | I6: 2017 | J6: =H6 -> styczeń
A7: 2017-01-02 | B7: II | C7: 31 | D7: 250 | F7: 250 | G7: poniedziałek | H7: styczeń | I7: 2017 | J7: styczeń
A8: 2017-01-02 | B8: II | C8: 334 | D8: 556 | E8: 3 | F8: 559 | G8: poniedziałek | H8: styczeń | I8: 2017 | J8: styczeń
A9: 2017-01-02 | B9: II | C9: 198 | D9: 900 | F9: 900 | G9: poniedziałek | H9: styczeń | I9: 2017 | J9: styczeń
A10: 2017-01-02 | B10: II | C10: 844 | D10: 40 | F10: 40 | G10: poniedziałek | H10: styczeń | I10: 2017 | J10: styczeń
A11: 2017-01-02 | B11: II | C11: 198 | D11: 900 | F11: 900 | G11: poniedziałek | H11: styczeń | I11: 2017 | J11: styczeń
A12: 2017-01-02 | B12: II | C12: 844 | D12: 40 | F12: 40 | G12: poniedziałek | H12: styczeń | I12: 2017 | J12: styczeń
A13: 2017-01-02 | B13: III | C13: 356 | D13: 200 | E13: 42 | F13: 242 | G13: poniedziałek | H13: styczeń | I13: 2017 | J13: styczeń
A14: 2017-01-02 | B14: III | C14: 437 | D14: 301 | F14: 301 | G14: poniedziałek | H14: styczeń | I14: 2017 | J14: styczeń
A15: 2017-01-02 | B15: III | C15: 996 | D15: 150 | F15: 150 | G15: poniedziałek | H15: styczeń | I15: 2017 | J15: styczeń
A16: 2017-01-02 | B16: III | C16: 119 | D16: 320 | F16: 320 | G16: poniedziałek | H16: styczeń | I16: 2017 | J16: styczeń
A17: 2017-01-03 | B17: II | C17: 1533713 | D17: 255 | F17: 255 | G17: wtorek | H17: styczeń | I17: 2017 | J17: styczeń
A18: 2017-01-03 | B18: II | C18: 2296305 | D18: 322 | F18: 322 | G18: wtorek | H18: styczeń | I18: 2017 | J18: styczeń
A19: 2017-01-03 | B19: II | C19: 891 | D19: 320 | E19: 27 | F19: 347 | G19: wtorek | H19: styczeń | I19: 2017 | J19: styczeń
A20: 2017-01-03 | B20: II | C20: 894 | D20: 31 | F20: 31 | G20: wtorek | H20: styczeń | I20: 2017 | J20: styczeń
A21: 2017-01-03 | B21: II | C21: 677 | D21: 25 | F21: 25 | G21: wtorek | H21: styczeń | I21: 2017 | J21: styczeń
A22: 2017-01-03 | B22: II | C22: 22 | D22: 110 | F22: 110 | G22: wtorek | H22: styczeń | I22: 2017 | J22: styczeń
A23: 2017-01-03 | B23: II | C23: 142 | D23: 49 | F23: 49 | G23: wtorek | H23: styczeń | I23: 2017 | J23: styczeń
A24: 2017-01-03 | B24: II | C24: 326 | D24: 2184 | F24: 2184 | G24: wtorek | H24: styczeń | I24: 2017 | J24: styczeń
A25: 2017-01-03 | B25: II | C25: 571 | D25: 48 | E25: 26 | F25: 74 | G25: wtorek | H25: styczeń | I25: 2017 | J25: styczeń
A26: 2017-01-03 | B26: II | C26: 2408709 | D26: 24 | F26: 24 | G26: wtorek | H26: styczeń | I26: 2017 | J26: styczeń
A27: 2017-01-03 | B27: II | C27: 252 | D27: 18 | F27: 18 | G27: wtorek | H27: styczeń | I27: 2017 | J27: styczeń
A28: 2017-01-03 | B28: II | C28: 933 | D28: 25 | F28: 25 | G28: wtorek | H28: styczeń | I28: 2017 | J28: styczeń
A29: 2017-01-03 | B29: II | C29: 958 | D29: 12 | F29: 12 | G29: wtorek | H29: styczeń | I29: 2017 | J29: styczeń
A30: 2017-01-03 | B30: II | C30: 350 | D30: 60 | E30: 41 | F30: 101 | G30: wtorek | H30: styczeń | I30: 2017 | J30: styczeń
A31: 2017-01-03 | B31: II | C31: 358 | D31: 50 | E31: 12 | F31: 62 | G31: wtorek | H31: styczeń | I31: 2017 | J31: styczeń
A32: 2017-01-03 | B32: II | C32: 269 | D32: 50 | E32: 22 | F32: 72 | G32: wtorek | H32: styczeń | I32: 2017 | J32: styczeń
A33: 2017-01-03 | B33: II | C33: 944 | D33: 20 | F33: 20 | G33: wtorek | H33: styczeń | I33: 2017 | J33: styczeń
A34: 2017-01-03 | B34: II | C34: 726 | D34: 113 | E34: 16 | F34: 129 | G34: wtorek | H34: styczeń | I34: 2017 | J34: styczeń
A35: 2017-01-03 | B35: II | C35: 351 | D35: 3 | F35: 3 | G35: wtorek | H35: styczeń | I35: 2017 | J35: styczeń
A36: 2017-01-03 | B36: II | C36: 791 | D36: 140 | F36: 140 | G36: wtorek | H36: styczeń | I36: 2017 | J36: styczeń
A37: 2017-01-03 | B37: III | C37: 511 | D37: 204 | E37: 1 | F37: 205 | G37: wtorek | H37: styczeń | I37: 2017 | J37: styczeń
A38: 2017-01-03 | B38: III | C38: 160 | D38: 219 | F38: 219 | G38: wtorek | H38: styczeń | I38: 2017 | J38: styczeń
A39: 2017-01-03 | B39: III | C39: 888 | D39: 30 | F39: 30 | G39: wtorek | H39: styczeń | I39: 2017 | J39: styczeń
A40: 2017-01-03 | B40: III | C40: 571 | D40: 60 | E40: 70 | F40: 130 | G40: wtorek | H40: styczeń | I40: 2017 | J40: styczeń
A41: 2017-01-03 | B41: III | C41: 933 | D41: 256 | E41: 8 | F41: 264 | G41: wtorek | H41: styczeń | I41: 2017 | J41: styczeń
A42: 2017-01-04 | B42: II | C42: 252 | D42: 73 | F42: 73 | G42: środa | H42: styczeń | I42: 2017 | J42: styczeń
A43: 2017-01-04 | B43: II | C43: 726 | D43: 9 | F43: 9 | G43: środa | H43: styczeń | I43: 2017 | J43: styczeń
A44: 2017-01-04 | B44: II | C44: 891 | D44: 960 | E44: 24 | F44: 984 | G44: środa | H44: styczeń | I44: 2017 | J44: styczeń
A45: 2017-01-04 | B45: II | C45: 502 | D45: 116 | F45: 116 | G45: środa | H45: styczeń | I45: 2017 | J45: styczeń
A46: 2017-01-04 | B46: II | C46: 414 | D46: 10 | F46: 10 | G46: środa | H46: styczeń | I46: 2017 | J46: styczeń
A47: 2017-01-04 | B47: II | C47: 140 | D47: 50 | F47: 50 | G47: środa | H47: styczeń | I47: 2017 | J47: styczeń
A48: 2017-01-04 | B48: II | C48: 212 | D48: 70 | F48: 70 | G48: środa | H48: styczeń | I48: 2017 | J48: styczeń
A49: 2017-01-04 | B49: II | C49: 43 | D49: 7 | F49: 7 | G49: środa | H49: styczeń | I49: 2017 | J49: styczeń
A50: 2017-01-04 | B50: II | C50: 2009613 | D50: 6 | F50: 6 | G50: środa | H50: styczeń | I50: 2017 | J50: styczeń
A51: 2017-01-04 | B51: II | C51: 894 | D51: 160 | F51: 160 | G51: środa | H51: styczeń | I51: 2017 | J51: styczeń
A52: 2017-01-04 | B52: II | C52: 37 | D52: 40 | F52: 40 | G52: środa | H52: styczeń | I52: 2017 | J52: styczeń
A53: 2017-01-04 | B53: II | C53: 498 | D53: 2544 | E53: 35 | F53: 2579 | G53: środa | H53: styczeń | I53: 2017 | J53: styczeń
A54: 2017-01-04 | B54: II | C54: 356 | D54: 73 | F54: 73 | G54: środa | H54: styczeń | I54: 2017 | J54: styczeń
A55: 2017-01-04 | B55: II | C55: 2432300 | D55: 160 | E55: 16 | F55: 176 | G55: środa | H55: styczeń | I55: 2017 | J55: styczeń
A56: 2017-01-04 | B56: II | C56: 787 | D56: 483 | F56: 483 | G56: środa | H56: styczeń | I56: 2017 | J56: styczeń
A57: 2017-01-04 | B57: II | C57: 269 | D57: 50 | E57: 59 | F57: 109 | G57: środa | H57: styczeń | I57: 2017 | J57: styczeń
A58: 2017-01-04 | B58: II | C58: 358 | D58: 20 | F58: 20 | G58: środa | H58: styczeń | I58: 2017 | J58: styczeń
A59: 2017-01-04 | B59: II | C59: 513 | D59: 240 | F59: 240 | G59: środa | H59: styczeń | I59: 2017 | J59: styczeń
A60: 2017-01-04 | B60: II | C60: 844 | D60: 40 | F60: 40 | G60: środa | H60: styczeń | I60: 2017 | J60: styczeń
A61: 2017-01-04 | B61: II | C61: 746 | D61: 7 | F61: 7 | G61: środa | H61: styczeń | I61: 2017 | J61: styczeń
A62: 2017-01-04 | B62: II | C62: 746 | D62: 53 | F62: 53 | G62: środa | H62: styczeń | I62: 2017 | J62: styczeń
A63: 2017-01-04 | B63: II | C63: 350 | D63: 4 | F63: 4 | G63: środa | H63: styczeń | I63: 2017 | J63: styczeń
A64: 2017-01-04 | B64: II | C64: 476 | D64: 20 | F64: 20 | G64: środa | H64: styczeń | I64: 2017 | J64: styczeń
A65: 2017-01-04 | B65: II | C65: 2296305 | D65: 150 | F65: 150 | G65: środa | H65: styczeń | I65: 2017 | J65: styczeń
A66: 2017-01-04 | B66: III | C66: 726 | D66: 52 | E66: 2 | F66: 54 | G66: środa | H66: styczeń | I66: 2017 | J66: styczeń
A67: 2017-01-04 | B67: III | C67: 414 | D67: 1 | F67: 1 | G67: =IF(A67="","",TEXT(DAY(A67),"dddd")) -> środa | H67: =IFERROR(IF(A67="","",TEXT(MONTH(A67)*30,"mmmm")),"") -> styczeń | I67: 2017 | J67: styczeń
A68: 2017-01-04 | B68: III | C68: 326 | D68: 1599 | F68: 1599 | G68: środa | H68: styczeń | I68: 2017 | J68: styczeń
A69: 2017-01-04 | B69: III | C69: 498 | D69: 200 | F69: 200 | G69: środa | H69: styczeń | I69: =IF(A69="","",YEAR(A69)) -> 2017 | J69: styczeń
A70: 2017-01-04 | B70: III | C70: 812 | D70: 750 | E70: 70 | F70: =IF(A70="","",D70+E70) -> 820 | G70: środa | H70: styczeń | I70: 2017 | J70: =H70 -> styczeń
A71: 2017-01-04 | B71: III | C71: 119 | D71: 40 | F71: 40 | G71: środa | H71: styczeń | I71: 2017 | J71: styczeń
A72: 2017-01-05 | B72: I | C72: 335 | D72: 87 | E72: 3 | F72: 90 | G72: czwartek | H72: styczeń | I72: 2017 | J72: styczeń
A73: 2017-01-05 | B73: I | C73: 300 | D73: 159 | E73: 31 | F73: 190 | G73: czwartek | H73: styczeń | I73: 2017 | J73: styczeń
A74: 2017-01-05 | B74: I | C74: 726 | D74: 98 | F74: 98 | G74: czwartek | H74: styczeń | I74: 2017 | J74: styczeń
A75: 2017-01-05 | B75: I | C75: 498 | D75: 2316 | E75: 6 | F75: 2322 | G75: czwartek | H75: styczeń | I75: 2017 | J75: styczeń
A76: 2017-01-05 | B76: I | C76: 2408708 | D76: 36 | E76: 1 | F76: 37 | G76: czwartek | H76: styczeń | I76: 2017 | J76: styczeń
A77: 2017-01-05 | B77: I | C77: 635 | D77: 17 | F77: 17 | G77: czwartek | H77: styczeń | I77: 2017 | J77: styczeń
A78: 2017-01-05 | B78: I | C78: 570 | D78: 150 | F78: 150 | G78: czwartek | H78: styczeń | I78: 2017 | J78: styczeń
A79: 2017-01-05 | B79: I | C79: 2296305 | D79: 328 | E79: 30 | F79: 358 | G79: czwartek | H79: styczeń | I79: 2017 | J79: styczeń
A80: 2017-01-05 | B80: I | C80: 895 | D80: 56 | F80: 56 | G80: czwartek | H80: styczeń | I80: 2017 | J80: styczeń
A81: 2017-01-05 | B81: II | C81: 2296305 | D81: 300 | F81: 300 | G81: czwartek | H81: styczeń | I81: 2017 | J81: styczeń
A82: 2017-01-05 | B82: II | C82: 335 | D82: 313 | F82: 313 | G82: czwartek | H82: styczeń | I82: 2017 | J82: styczeń
A83: 2017-01-05 | B83: II | C83: 269 | D83: 60 | E83: 1 | F83: 61 | G83: czwartek | H83: styczeń | I83: 2017 | J83: styczeń
A84: 2017-01-05 | B84: II | C84: 812 | D84: 250 | E84: 13 | F84: 263 | G84: czwartek | H84: styczeń | I84: 2017 | J84: styczeń
A85: 2017-01-05 | B85: III | C85: 198 | D85: 100 | F85: 100 | G85: czwartek | H85: styczeń | I85: 2017 | J85: styczeń
A86: 2017-01-05 | B86: III | C86: 350 | D86: 50 | F86: 50 | G86: czwartek | H86: styczeń | I86: 2017 | J86: styczeń
A87: 2017-01-05 | B87: III | C87: 119 | D87: 840 | F87: 840 | G87: czwartek | H87: styczeń | I87: 2017 | J87: styczeń
A88: 2017-01-06 | B88: I | C88: 498 | D88: 2272 | E88: 13 | F88: 2285 | G88: piątek | H88: styczeń | I88: 2017 | J88: styczeń
A89: 2017-01-07 | B89: II | C89: 326 | D89: 200 | F89: 200 | G89: sobota | H89: styczeń | I89: 2017 | J89: styczeń
A90: 2017-01-09 | B90: II | C90: 326 | D90: 380 | E90: 19 | F90: 399 | G90: poniedziałek | H90: styczeń | I90: 2017 | J90: styczeń
A91: 2017-01-09 | B91: II | C91: 933 | D91: 24 | F91: 24 | G91: poniedziałek | H91: styczeń | I91: 2017 | J91: styczeń
A92: 2017-01-09 | B92: II | C92: 716 | D92: 400 | E92: 46 | F92: 446 | G92: poniedziałek | H92: styczeń | I92: 2017 | J92: styczeń
A93: 2017-01-09 | B93: II | C93: 350 | D93: 32 | E93: 2 | F93: 34 | G93: poniedziałek | H93: styczeń | I93: 2017 | J93: styczeń
A94: 2017-01-09 | B94: II | C94: 417 | D94: 15 | F94: 15 | G94: poniedziałek | H94: styczeń | I94: 2017 | J94: styczeń
A95: 2017-01-09 | B95: II | C95: 2408708 | D95: 89 | E95: 10 | F95: 99 | G95: poniedziałek | H95: styczeń | I95: 2017 | J95: styczeń
A96: 2017-01-09 | B96: II | C96: 351 | D96: 195 | E96: 5 | F96: 200 | G96: poniedziałek | H96: styczeń | I96: 2017 | J96: styczeń
A97: 2017-01-09 | B97: II | C97: 498 | D97: 2209 | E97: 18 | F97: 2227 | G97: poniedziałek | H97: styczeń | I97: 2017 | J97: styczeń
A98: 2017-01-09 | B98: II | C98: 2296305 | D98: 280 | F98: 280 | G98: poniedziałek | H98: styczeń | I98: 2017 | J98: styczeń
A99: 2017-01-09 | B99: II | C99: 513 | D99: 360 | E99: 2 | F99: 362 | G99: poniedziałek | H99: styczeń | I99: 2017 | J99: styczeń
A100: 2017-01-09 | B100: II | C100: 635 | D100: 30 | F100: 30 | G100: poniedziałek | H100: styczeń | I100: 2017 | J100: styczeń
A101: 2017-01-09 | B101: II | C101: 358 | D101: 14 | F101: 14 | G101: poniedziałek | H101: styczeń | I101: 2017 | J101: styczeń
A102: 2017-01-09 | B102: II | C102: 269 | D102: 46 | E102: 1 | F102: 47 | G102: poniedziałek | H102: styczeń | I102: 2017 | J102: styczeń
A103: 2017-01-09 | B103: II | C103: 326 | D103: 480 | F103: 480 | G103: poniedziałek | H103: styczeń | I103: 2017 | J103: styczeń
A104: 2017-01-09 | B104: II | C104: 198 | D104: 286 | F104: 286 | G104: poniedziałek | H104: styczeń | I104: 2017 | J104: styczeń
A105: 2017-01-09 | B105: II | C105: 894 | D105: 64 | F105: 64 | G105: poniedziałek | H105: styczeń | I105: 2017 | J105: styczeń
A106: 2017-01-09 | B106: II | C106: 844 | D106: 120 | F106: 120 | G106: poniedziałek | H106: styczeń | I106: 2017 | J106: styczeń
A107: 2017-01-09 | B107: II | C107: 166 | D107: 10 | F107: 10 | G107: poniedziałek | H107: styczeń | I107: 2017 | J107: styczeń
A108: 2017-01-09 | B108: II | C108: 894 | D108: 176 | E108: 1 | F108: 177 | G108: poniedziałek | H108: styczeń | I108: 2017 | J108: styczeń
A109: 2017-01-09 | B109: II | C109: 812 | D109: 150 | F109: 150 | G109: poniedziałek | H109: styczeń | I109: 2017 | J109: styczeń
A110: 2017-01-09 | B110: III | C110: 326 | D110: 198 | E110: 1 | F110: 199 | G110: poniedziałek | H110: styczeń | I110: 2017 | J110: styczeń
A111: 2017-01-09 | B111: III | C111: 994 | D111: 1279 | E111: 5 | F111: 1284 | G111: poniedziałek | H111: styczeń | I111: 2017 | J111: styczeń
A112: 2017-01-09 | B112: III | C112: 498 | D112: 796 | F112: 796 | G112: poniedziałek | H112: styczeń | I112: 2017 | J112: styczeń
A113: 2017-01-10 | B113: I | C113: 300 | D113: 57 | F113: 57 | G113: wtorek | H113: styczeń | I113: 2017 | J113: styczeń
A114: 2017-01-10 | B114: I | C114: 2408708 | D114: 10 | F114: 10 | G114: wtorek | H114: styczeń | I114: 2017 | J114: styczeń
A115: 2017-01-10 | B115: I | C115: 635 | D115: 89 | F115: 89 | G115: wtorek | H115: styczeń | I115: 2017 | J115: styczeń
A116: 2017-01-10 | B116: I | C116: 350 | D116: 328 | E116: 2 | F116: 330 | G116: wtorek | H116: styczeń | I116: 2017 | J116: styczeń
A117: 2017-01-10 | B117: I | C117: 513 | D117: 19 | F117: 19 | G117: wtorek | H117: styczeń | I117: 2017 | J117: styczeń
A118: 2017-01-10 | B118: I | C118: 160 | D118: 93 | F118: 93 | G118: wtorek | H118: styczeń | I118: 2017 | J118: styczeń
A119: 2017-01-10 | B119: I | C119: 2296305 | D119: 170 | F119: 170 | G119: wtorek | H119: styczeń | I119: 2017 | J119: styczeń
A120: 2017-01-10 | B120: I | C120: 2408709 | D120: 72 | E120: 10 | F120: 82 | G120: wtorek | H120: styczeń | I120: 2017 | J120: styczeń
A121: 2017-01-10 | B121: I | C121: 976 | D121: 119 | F121: 119 | G121: wtorek | H121: styczeń | I121: 2017 | J121: styczeń
A122: 2017-01-10 | B122: I | C122: 498 | D122: 1623 | E122: 1 | F122: 1624 | G122: wtorek | H122: styczeń | I122: 2017 | J122: styczeń
A123: 2017-01-10 | B123: I | C123: 122 | D123: 440 | F123: 440 | G123: wtorek | H123: styczeń | I123: 2017 | J123: styczeń
A124: 2017-01-10 | B124: I | C124: 2030723 | D124: 100 | F124: 100 | G124: wtorek | H124: styczeń | I124: 2017 | J124: styczeń
A125: 2017-01-10 | B125: I | C125: 571 | D125: 228 | E125: 20 | F125: 248 | G125: wtorek | H125: styczeń | I125: 2017 | J125: styczeń
A126: 2017-01-10 | B126: I | C126: 140 | D126: 38 | F126: 38 | G126: wtorek | H126: styczeń | I126: 2017 | J126: styczeń
A127: 2017-01-10 | B127: II | C127: 198 | D127: 94 | E127: 2 | F127: 96 | G127: wtorek | H127: styczeń | I127: 2017 | J127: styczeń
A128: 2017-01-10 | B128: II | C128: 746 | D128: 326 | F128: 326 | G128: wtorek | H128: styczeń | I128: 2017 | J128: styczeń
A129: 2017-01-10 | B129: II | C129: 326 | D129: 2191 | E129: 7 | F129: 2198 | G129: wtorek | H129: styczeń | I129: 2017 | J129: styczeń
A130: 2017-01-10 | B130: II | C130: 498 | D130: 199 | F130: 199 | G130: wtorek | H130: styczeń | I130: 2017 | J130: styczeń
A131: 2017-01-10 | B131: II | C131: 2310044 | D131: 264 | F131: 264 | G131: =IF(A131="","",TEXT(DAY(A131),"dddd")) -> wtorek | H131: =IFERROR(IF(A131="","",TEXT(MONTH(A131)*30,"mmmm")),"") -> styczeń | I131: 2017 | J131: styczeń
A132: 2017-01-10 | B132: II | C132: 2408708 | D132: 130 | F132: 130 | G132: wtorek | H132: styczeń | I132: 2017 | J132: styczeń
A133: 2017-01-10 | B133: III | C133: 326 | D133: 599 | E133: 1 | F133: 600 | G133: wtorek | H133: styczeń | I133: =IF(A133="","",YEAR(A133)) -> 2017 | J133: styczeń
A134: 2017-01-10 | B134: III | C134: 498 | D134: 1796 | E134: 1 | F134: =IF(A134="","",D134+E134) -> 1797 | G134: wtorek | H134: styczeń | I134: 2017 | J134: =H134 -> styczeń
A135: 2017-01-11 | B135: I | C135: 156 | D135: 120 | F135: 120 | G135: środa | H135: styczeń | I135: 2017 | J135: styczeń
A136: 2017-01-11 | B136: I | C136: 570 | D136: 30 | F136: 30 | G136: środa | H136: styczeń | I136: 2017 | J136: styczeń
A137: 2017-01-11 | B137: I | C137: 391 | D137: 30 | F137: 30 | G137: środa | H137: styczeń | I137: 2017 | J137: styczeń
A138: 2017-01-11 | B138: I | C138: 69 | D138: 296 | E138: 4 | F138: 300 | G138: środa | H138: styczeń | I138: 2017 | J138: styczeń
A139: 2017-01-11 | B139: I | C139: 694 | D139: 6 | F139: 6 | G139: środa | H139: styczeń | I139: 2017 | J139: styczeń
A140: 2017-01-11 | B140: I | C140: 2296305 | D140: 150 | F140: 150 | G140: środa | H140: styczeń | I140: 2017 | J140: styczeń
A141: 2017-01-11 | B141: I | C141: 787 | D141: 514 | E141: 1 | F141: 515 | G141: środa | H141: styczeń | I141: 2017 | J141: styczeń
A142: 2017-01-11 | B142: I | C142: 705 | D142: 106 | F142: 106 | G142: środa | H142: styczeń | I142: 2017 | J142: styczeń
A143: 2017-01-11 | B143: I | C143: 812 | D143: 550 | E143: 26 | F143: 576 | G143: środa | H143: styczeń | I143: 2017 | J143: styczeń
A144: 2017-01-11 | B144: I | C144: 214 | D144: 45 | F144: 45 | G144: środa | H144: styczeń | I144: 2017 | J144: styczeń
A145: 2017-01-11 | B145: I | C145: 417 | D145: 10 | F145: 10 | G145: środa | H145: styczeń | I145: 2017 | J145: styczeń
A146: 2017-01-11 | B146: I | C146: 726 | D146: 383 | E146: 2 | F146: 385 | G146: środa | H146: styczeń | I146: 2017 | J146: styczeń
A147: 2017-01-11 | B147: I | C147: 498 | D147: 1179 | E147: 11 | F147: 1190 | G147: środa | H147: styczeń | I147: 2017 | J147: styczeń
A148: 2017-01-11 | B148: I | C148: 891 | D148: 274 | E148: 416 | F148: 690 | G148: środa | H148: styczeń | I148: 2017 | J148: styczeń
A149: 2017-01-11 | B149: I | C149: 634 | D149: 84 | F149: 84 | G149: środa | H149: styczeń | I149: 2017 | J149: styczeń
A150: 2017-01-11 | B150: II | C150: 634 | D150: 89 | E150: 5 | F150: 94 | G150: środa | H150: styczeń | I150: 2017 | J150: styczeń
A151: 2017-01-11 | B151: II | C151: 717 | D151: 15 | F151: 15 | G151: środa | H151: styczeń | I151: 2017 | J151: styczeń
A152: 2017-01-11 | B152: II | C152: 358 | D152: 36 | E152: 24 | F152: 60 | G152: środa | H152: styczeń | I152: 2017 | J152: styczeń
A153: 2017-01-11 | B153: II | C153: 511 | D153: 279 | E153: 5 | F153: 284 | G153: środa | H153: styczeń | I153: 2017 | J153: styczeń
A154: 2017-01-11 | B154: II | C154: 269 | D154: 34 | F154: 34 | G154: środa | H154: styczeń | I154: 2017 | J154: styczeń
A155: 2017-01-11 | B155: II | C155: 2219049 | D155: 10 | F155: 10 | G155: środa | H155: styczeń | I155: 2017 | J155: styczeń
A156: 2017-01-11 | B156: II | C156: 996 | D156: 81 | F156: 81 | G156: środa | H156: styczeń | I156: 2017 | J156: styczeń
A157: 2017-01-11 | B157: II | C157: 2297015 | D157: 139 | E157: 2 | F157: 141 | G157: środa | H157: styczeń | I157: 2017 | J157: styczeń
A158: 2017-01-11 | B158: II | C158: 780 | D158: 242 | E158: 2 | F158: 244 | G158: środa | H158: styczeń | I158: 2017 | J158: styczeń
A159: 2017-01-11 | B159: III | C159: 498 | D159: 769 | E159: 29 | F159: 798 | G159: środa | H159: styczeń | I159: 2017 | J159: styczeń
A160: 2017-01-11 | B160: III | C160: 994 | D160: 1124 | E160: 4 | F160: 1128 | G160: środa | H160: styczeń | I160: 2017 | J160: styczeń
A161: 2017-01-11 | B161: III | C161: 326 | D161: 395 | E161: 3 | F161: 398 | G161: środa | H161: styczeń | I161: 2017 | J161: styczeń
A162: 2017-01-11 | B162: II | C162: 198 | D162: 127 | F162: 127 | G162: środa | H162: styczeń | I162: 2017 | J162: styczeń
A163: 2017-01-11 | B163: II | C163: 712 | D163: 400 | E163: 1 | F163: 401 | G163: środa | H163: styczeń | I163: 2017 | J163: styczeń
A164: 2017-01-11 | B164: II | C164: 352 | D164: 450 | F164: 450 | G164: środa | H164: styczeń | I164: 2017 | J164: styczeń
A165: 2017-01-11 | B165: II | C165: 514 | D165: 180 | F165: 180 | G165: środa | H165: styczeń | I165: 2017 | J165: styczeń
A166: 2017-01-12 | B166: I | C166: 2297015 | D166: 82 | F166: 82 | G166: czwartek | H166: styczeń | I166: 2017 | J166: styczeń
A167: 2017-01-12 | B167: I | C167: 326 | D167: 921 | F167: 921 | G167: czwartek | H167: styczeń | I167: 2017 | J167: styczeń
A168: 2017-01-12 | B168: I | C168: 888 | D168: 20 | E168: 21 | F168: 41 | G168: czwartek | H168: styczeń | I168: 2017 | J168: styczeń
A169: 2017-01-12 | B169: I | C169: 2408708 | D169: 24 | F169: 24 | G169: czwartek | H169: styczeń | I169: 2017 | J169: styczeń
A170: 2017-01-12 | B170: I | C170: 2296305 | D170: 200 | F170: 200 | G170: czwartek | H170: styczeń | I170: 2017 | J170: styczeń
A171: 2017-01-12 | B171: I | C171: 37 | D171: 20 | F171: 20 | G171: czwartek | H171: styczeń | I171: 2017 | J171: styczeń
A172: 2017-01-12 | B172: I | C172: 335 | D172: 413 | F172: 413 | G172: czwartek | H172: styczeń | I172: 2017 | J172: styczeń
A173: 2017-01-12 | B173: I | C173: 705 | D173: 15 | F173: 15 | G173: czwartek | H173: styczeń | I173: 2017 | J173: styczeń
A174: 2017-01-12 | B174: I | C174: 437 | D174: 52 | E174: 35 | F174: 87 | G174: czwartek | H174: styczeń | I174: 2017 | J174: styczeń
A175: 2017-01-12 | B175: I | C175: 891 | D175: 526 | F175: 526 | G175: czwartek | H175: styczeń | I175: 2017 | J175: styczeń
A176: 2017-01-12 | B176: I | C176: 498 | D176: 1641 | E176: 105 | F176: 1746 | G176: czwartek | H176: styczeń | I176: 2017 | J176: styczeń
A177: 2017-01-12 | B177: I | C177: 179 | D177: 271 | F177: 271 | G177: czwartek | H177: styczeń | I177: 2017 | J177: styczeń
A178: 2017-01-12 | B178: I | C178: 812 | D178: 1312 | E178: 12 | F178: 1324 | G178: czwartek | H178: styczeń | I178: 2017 | J178: styczeń
A179: 2017-01-12 | B179: III | C179: 498 | D179: 1784 | E179: 17 | F179: 1801 | G179: czwartek | H179: styczeń | I179: 2017 | J179: styczeń
A180: 2017-01-12 | B180: III | C180: 326 | D180: 597 | F180: 597 | G180: czwartek | H180: styczeń | I180: 2017 | J180: styczeń
A181: 2017-01-13 | B181: I | C181: 476 | D181: 46 | F181: 46 | G181: piątek | H181: styczeń | I181: 2017 | J181: styczeń
A182: 2017-01-13 | B182: I | C182: 475 | D182: 50 | F182: 50 | G182: piątek | H182: styczeń | I182: 2017 | J182: styczeń
A183: 2017-01-13 | B183: I | C183: 677 | D183: 25 | F183: 25 | G183: piątek | H183: styczeń | I183: 2017 | J183: styczeń
A184: 2017-01-13 | B184: I | C184: 326 | D184: 1596 | E184: 5 | F184: 1601 | G184: piątek | H184: styczeń | I184: 2017 | J184: styczeń
A185: 2017-01-13 | B185: I | C185: 498 | D185: 227 | E185: 5 | F185: 232 | G185: piątek | H185: styczeń | I185: 2017 | J185: styczeń
A186: 2017-01-13 | B186: I | C186: 635 | D186: 40 | F186: 40 | G186: piątek | H186: styczeń | I186: 2017 | J186: styczeń
A187: 2017-01-13 | B187: I | C187: 335 | D187: 500 | E187: 21 | F187: 521 | G187: piątek | H187: styczeń | I187: 2017 | J187: styczeń
A188: 2017-01-13 | B188: I | C188: 43 | D188: 10 | F188: 10 | G188: piątek | H188: styczeń | I188: 2017 | J188: styczeń
A189: 2017-01-13 | B189: I | C189: 2296305 | D189: 200 | F189: 200 | G189: piątek | H189: styczeń | I189: 2017 | J189: styczeń
A190: 2017-01-13 | B190: I | C190: 571 | D190: 24 | F190: 24 | G190: piątek | H190: styczeń | I190: 2017 | J190: styczeń
A191: 2017-01-13 | B191: I | C191: 723 | D191: 6 | F191: 6 | G191: piątek | H191: styczeń | I191: 2017 | J191: styczeń
A192: 2017-01-13 | B192: I | C192: 437 | D192: 64 | F192: 64 | G192: piątek | H192: styczeń | I192: 2017 | J192: styczeń
A193: 2017-01-13 | B193: I | C193: 891 | D193: 320 | F193: 320 | G193: piątek | H193: styczeń | I193: 2017 | J193: styczeń
A194: 2017-01-13 | B194: I | C194: 334 | D194: 360 | E194: 26 | F194: 386 | G194: piątek | H194: styczeń | I194: 2017 | J194: styczeń
A195: 2017-01-13 | B195: I | C195: 895 | D195: 28 | F195: 28 | G195: =IF(A195="","",TEXT(DAY(A195),"dddd")) -> piątek | H195: =IFERROR(IF(A195="","",TEXT(MONTH(A195)*30,"mmmm")),"") -> styczeń | I195: 2017 | J195: styczeń
A196: 2017-01-13 | B196: I | C196: 119 | D196: 320 | F196: 320 | G196: piątek | H196: styczeń | I196: 2017 | J196: styczeń
A197: 2017-01-13 | B197: III | C197: 498 | D197: 1992 | E197: 6 | F197: 1998 | G197: piątek | H197: styczeń | I197: =IF(A197="","",YEAR(A197)) -> 2017 | J197: styczeń
A198: 2017-01-13 | B198: III | C198: 326 | D198: 400 | F198: =IF(A198="","",D198+E198) -> 400 | G198: piątek | H198: styczeń | I198: 2017 | J198: =H198 -> styczeń
A199: 2017-01-13 | B199: II | C199: 845 | D199: 40 | F199: 40 | G199: piątek | H199: styczeń | I199: 2017 | J199: styczeń
A200: 2017-01-13 | B200: II | C200: 2009613 | D200: 20 | F200: 20 | G200: piątek | H200: styczeń | I200: 2017 | J200: styczeń
... 2327 more rows
